fUSD/lending_fUSD_20260126
["ID","MTS","AMOUNT","RATE_DAILY","PERIOD"]
[403604120,1769413843776,-25000.0,0.00017882,3]
[403604121,1769413843786,-1000.0,0.00017884,2]
[403604122,1769413843795,-2099.6,0.00017886,2]
[403604123,1769413843804,-867.98,0.00017888,2]
[403604124,1769413843813,-211.32846507,0.0001789,2]
[403604125,1769413843823,-25000.0,0.00017891,3]
[403604126,1769413843832,-300.0,0.00017899,2]
[403604127,1769413843841,-25000.0,0.000179,3]
[403604128,1769413843851,-753.04363973,0.000179,2]
[403604129,1769413843861,-10698.54905143,0.000179,2]
[403604130,1769413843871,-281.95581676,0.000179,2]
[403604131,1769413843880,-155.97251724,0.000179,2]
[403604132,1769413843890,-155.97251722,0.000179,2]
[403604133,1769413843900,-155.97251722,0.000179,2]
[403604134,1769413843909,-236.23127952,0.000179,2]
[403604135,1769413843919,-155.97251722,0.000179,2]
[403604136,1769413843928,-155.97251722,0.000179,2]
[403604137,1769413843938,-155.97251722,0.000179,2]
[403604138,1769413843948,-155.97251722,0.000179,2]
[403604139,1769413843958,-1301.4058574,0.000179,2]
[403604140,1769413843967,-155.97251722,0.000179,2]
[403604141,1769413843977,-7317.08563727,0.000179,2]
[403604142,1769413843987,-15423.19860128,0.000179,2]
[403604143,1769413843997,-25000.0,0.000179,3]
[403604144,1769413844008,-6547.11642419,0.00017917,2]
[403604145,1769413844018,-500.0,0.00017918,2]
[403604146,1769413844028,-346.0,0.00017919,2]
[403604147,1769413844038,-172.2795408,0.0001793,3]
[403604148,1769413844049,-1198.0,0.00017945,2]
[403604149,1769413844059,-194.72792766,0.00017954,2]
[403604150,1769413844068,-952.63336648,0.00017954,2]
[403604151,1769413844079,-151.0,0.00017954,2]
[403604152,1769413844089,-400.0,0.0001797,2]
[403604153,1769413844098,-400.0,0.0001797,2]
[403604154,1769413844108,-400.0,0.0001797,2]
[403604155,1769413844119,-400.0,0.0001797,2]
[403604156,1769413844128,-400.0,0.0001797,2]
[403604157,1769413844137,-798.2174447,0.0001797,2]
[403604158,1769413844147,-704.68300704,0.0001797,2]
[403604159,1769413844156,-500.0,0.00017972,2]
[403604160,1769413844166,-151.0,0.00017973,2]
[403604161,1769413844176,-151.0,0.00017973,2]
[403604162,1769413844186,-151.0,0.00017973,2]
[403604163,1769413844195,-151.0,0.00017973,2]
[403604164,1769413844206,-151.0,0.00017973,2]
[403604165,1769413844216,-151.0,0.00017973,2]
[403604166,1769413844226,-151.0,0.00017973,2]
[403604167,1769413844235,-151.0,0.00017973,2]
[403604168,1769413844245,-188.07834286,0.00017973,2]
[403604169,1769413844254,-6658.0,0.00017973,2]
[403604170,1769413844264,-151.0,0.00017973,2]
[403604171,1769413844274,-151.0,0.00017973,2]
[403604172,1769413844285,-246.13924238,0.00017975,2]
[403604173,1769413844295,-300.0,0.00017975,2]
[403604174,1769413844305,-300.0,0.00017975,2]
[403604175,1769413844315,-307.80574855,0.00017975,2]
[403604176,1769413844325,-150.0,0.00017975,2]
[403604177,1769413844334,-1909.84,0.00017975,2]
[403604178,1769413844345,-1909.84,0.00017975,2]
[403604179,1769413844355,-1909.84,0.00017975,2]
[403604180,1769413844365,-1909.84,0.00017975,2]
[403604181,1769413844375,-124575.1740416,0.00017976,2]
[403604182,1769413844389,-110604.8308371,0.00017976,2]
[403604183,1769413844405,-18123.4307797,0.00017976,2]
[403604184,1769413844416,-47919.3399943,0.00017976,2]
[403604185,1769413844426,-615557.9860293,0.00017976,2]
[403604186,1769413844436,-151.0,0.00017976,2]
[403604187,1769413844445,-289.463199,0.00017976,2]
[403604188,1769413844455,-204.404307,0.00017976,2]
[403604189,1769413844465,-204.404307,0.00017976,2]
[403604190,1769413844474,-204.404307,0.00017976,2]
[403604191,1769413844484,-204.404307,0.00017976,2]
[403604192,1769413844494,-204.404307,0.00017976,2]
[403604193,1769413844504,-204.404307,0.00017976,2]
[403604194,1769413844514,-204.404307,0.00017976,2]
[403604195,1769413844523,-204.404307,0.00017976,2]
[403604196,1769413844533,-151.0,0.00017976,2]
[403604197,1769413844543,-151.0,0.00017976,2]
[403604198,1769413844552,-151.0,0.00017976,2]
[403604199,1769413844562,-151.0,0.00017976,2]
[403604200,1769413844571,-191.901362,0.00017976,2]
[403604201,1769413844581,-191.901362,0.00017976,2]
[403604202,1769413844591,-191.901362,0.00017976,2]
[403604203,1769413844601,-191.901362,0.00017976,2]
[403604204,1769413844610,-191.901362,0.00017976,2]
[403604205,1769413844621,-191.901362,0.00017976,2]
[403604206,1769413844634,-191.901362,0.00017976,2]
[403604207,1769413844644,-191.901362,0.00017976,2]
[403604208,1769413844654,-151.0,0.00017976,2]
[403604209,1769413844664,-151.0,0.00017976,2]
[403604210,1769413844675,-151.0,0.00017976,2]
[403604211,1769413844685,-151.0,0.00017976,2]
[403604212,1769413844695,-151.0,0.00017976,2]
[403604213,1769413844705,-151.0,0.00017976,2]
[403604214,1769413844715,-265.802274,0.00017976,2]
[403604215,1769413844725,-151.0,0.00017976,2]
[403604216,1769413844735,-151.0,0.00017976,2]
[403604217,1769413844746,-247.5036,0.00017976,2]
[403604218,1769413844756,-247.5036,0.00017976,2]
[403604219,1769413844767,-247.5036,0.00017976,2]
[403604220,1769413844777,-247.5036,0.00017976,2]
[403604221,1769413844787,-247.5036,0.00017976,2]
[403604222,1769413844797,-247.5036,0.00017976,2]
[403604223,1769413844807,-247.5036,0.00017976,2]
[403604224,1769413844818,-247.5036,0.00017976,2]
[403604225,1769413844828,-151.0,0.00017976,2]
[403604226,1769413844839,-151.0,0.00017976,2]
[403604227,1769413844849,-11405.7506955,0.00017978,2]
[403604228,1769413844859,-68655.565723,0.00017979,2]
[403604229,1769413844869,-97545.3695581,0.00017979,2]
[403604230,1769413844879,-2023.6411052,0.00017979,2]
[403604231,1769413844889,-1909.84,0.00017979,2]
[403604232,1769413844899,-11488.2470121,0.00017979,2]
[403604233,1769413844910,-1500.0,0.0001798,2]
[403604234,1769413844920,-1500.0,0.0001798,2]
[403604235,1769413844931,-1500.0,0.0001798,2]
[403604236,1769413844940,-1500.0,0.0001798,2]
[403604237,1769413844950,-326.24971363,0.0001798,2]
[403604241,1769413845228,-1500.0,0.0001798,2]
[403604242,1769413845238,-1500.0,0.0001798,2]
[403604243,1769413845248,-225.87248406,0.0001798,2]
[403604244,1769413845258,-1064.57913417,0.0001798,2]
[403604245,1769413845268,-194.45612682,0.0001799,2]
[403604246,1769413845278,-166.86399445,0.0001799,2]
[403604247,1769413845288,-349.67100726,0.0001799,2]
[403604248,1769413845297,-432.49577477,0.0001799,2]
[403604249,1769413845306,-432.49577477,0.0001799,2]
[403604250,1769413845316,-214.75381521,0.00017997,2]
[403604251,1769413845325,-346.0,0.00017998,2]
[403604252,1769413845335,-300.0,0.00017999,2]
[403604253,1769413845345,-300.0,0.00017999,2]
[403604254,1769413845355,-1909.84,0.00017999,2]
[403604255,1769413845365,-1909.84,0.00017999,2]
[403604256,1769413845375,-1909.84,0.00017999,2]
[403604257,1769413845386,-1909.84,0.00017999,2]
[403604258,1769413845400,-1909.84,0.00017999,2]
[403604259,1769413845411,-1909.84,0.00017999,2]
[403604260,1769413845420,-1909.84,0.00017999,2]
[403604261,1769413845430,-1909.84,0.00017999,2]
[403604262,1769413845439,-1909.84,0.00017999,2]
[403604263,1769413845449,-1910.02561324,0.00017999,2]
[403604264,1769413845459,-355.47047384,0.00018,2]
[403604265,1769413845468,-1000.0,0.00018,2]
[403604266,1769413845478,-542.70304932,0.00018,2]
[403604267,1769413845487,-1246602.51168562,0.00018,2]
[403604268,1769413845496,-2406524.9512513,0.00018,2]
[403604276,1769413846553,-258.37652492,0.00016338,2]
[403604277,1769413846562,-188.46565415,0.00016858,2]
[403604278,1769413846720,-311.53434585,0.00016858,2]
[403604279,1769413846729,-4090.46010415,0.00018,2]
[403604280,1769413846761,-6244.00000002,0.00018,2]
[403604281,1769413846837,-442682.31804334,0.00018,2]
[403604292,1769414503550,-2000.0,0.00019178,30]
[403604293,1769414853856,462.0,0.000144,5]
[403604302,1769415032039,-195.0,0.00011761,2]
[403604304,1769415032048,-397.10641296,0.00011761,2]
[403604306,1769415032063,-102.89358704,0.00011761,2]
[403604308,1769415032073,-250.0,0.00011764,2]
[403604310,1769415032085,-300.0,0.00011765,2]
[403604312,1769415032095,-300.0,0.00011765,2]
[403604314,1769415032104,-1200.0,0.00011765,2]
[403604316,1769415032114,-253.0,0.00011765,2]
[403604318,1769415032123,-300.0,0.00011765,2]
[403604320,1769415032132,-500.0,0.00011766,2]
[403604322,1769415032143,-528.7889002,0.00011766,2]
[403604325,1769415032152,-234.2683912,0.00011766,2]
[403604327,1769415032164,-265.7316088,0.00011766,2]
[403604329,1769415032173,-300.52698648,0.00011766,2]
[403604331,1769415032183,-151.0,0.00011766,2]
[403604333,1769415032192,-171.61310046,0.00011766,2]
[403604335,1769415032202,-500.0,0.00011766,2]
[403604337,1769415032211,-421.99971924,0.00011766,2]
[403604339,1769415032221,-195.0,0.00011767,2]
[403604341,1769415032230,-191.10793695,0.00011772,2]
[403604343,1769415032239,-150.0,0.00011772,2]
[403604345,1769415032248,-175.76530383,0.00011773,2]
[403604347,1769415032258,-500.23667878,0.00011773,2]
[403604349,1769415032267,-501.68812008,0.00011773,2]
[403604351,1769415032276,-164.00191052,0.00011773,2]
[403604353,1769415032285,-162.38789466,0.00011773,2]
[403604355,1769415032294,-225.10250083,0.00011773,2]
[403604357,1769415032304,-500.52199179,0.00011773,2]
[403604359,1769415032313,-315.57031454,0.00011773,2]
[403604361,1769415032325,-191.89609499,0.00011773,2]
[403604363,1769415032334,-539.54435086,0.00011773,2]
[403604365,1769415032343,-173.53406279,0.00011773,2]
[403604367,1769415032351,-501.11024626,0.00011773,2]
[403604369,1769415032358,-500.67959513,0.00011773,2]
[403604371,1769415032367,-160.13976557,0.00011773,2]
[403604373,1769415032375,-156.13639399,0.00011773,2]
[403604375,1769415032383,-160.14245761,0.00011773,2]
[403604377,1769415032392,-501.60224982,0.00011773,2]
[403604379,1769415032400,-500.78704741,0.00011773,2]
[403604381,1769415032408,-160.14350901,0.00011773,2]
[403604383,1769415032418,-501.44336114,0.00011773,2]
[403604385,1769415032425,-145.61191674,0.00011773,2]
[403604391,1769415032461,-354.77713877,0.00011773,2]
[403604393,1769415032471,-501.7545865,0.00011773,2]
[403604395,1769415032480,-501.07542973,0.00011773,2]
[403604397,1769415032489,-501.8811643,0.00011773,2]
[403604399,1769415032498,-500.29440029,0.00011773,2]
[403604401,1769415032507,-503.29314635,0.00011773,2]
[403604403,1769415032516,-501.74168083,0.00011773,2]
[403604404,1769415032525,-506.69350844,0.00011773,2]
[403604406,1769415032534,-400.03078791,0.00011773,2]
[403604408,1769415032543,-503.82731358,0.00011773,2]
[403604410,1769415032554,-505.08748914,0.00011773,2]
[403604413,1769415032563,-500.4061096,0.00011773,2]
[403604414,1769415032572,-501.13539483,0.00011773,2]
[403604417,1769415032581,-602.29751773,0.00011773,2]
[403604419,1769415032592,-500.94940282,0.00011773,2]
[403604421,1769415032602,-500.65809977,0.00011773,2]
[403604423,1769415032613,-500.22392606,0.00011773,2]
[403604425,1769415032622,-503.37162901,0.00011773,2]
[403604427,1769415032632,-162.93070593,0.00011773,2]
[403604429,1769415032641,-500.75467999,0.00011773,2]
[403604431,1769415032649,-502.94432005,0.00011773,2]
[403604433,1769415032658,-998.35,0.00011773,2]
[403604435,1769415032667,-998.35,0.00012047,2]
[403604437,1769415032676,-500.0,0.00012314,2]
[403604439,1769415032685,-984.06041413,0.00012321,2]
[403604441,1769415032697,-14.28958587,0.00012321,2]
[403604443,1769415032706,-3108.5,0.00012441,2]
[403604445,1769415032715,-998.35,0.00012595,2]
[403604447,1769415032724,-375.8377,0.0001263,2]
[403604449,1769415032733,-283.83,0.00012772,2]
[403604451,1769415032742,-255.0,0.00012843,2]
[403604453,1769415032751,-998.35,0.00012868,2]
[403604455,1769415032760,-420.0,0.00012918,2]
[403604457,1769415032769,-420.0,0.00012918,2]
[403604459,1769415032778,-256.87832781,0.00012934,2]
[403604461,1769415032788,-250.0,0.00012934,2]
[403604462,1769415032796,-195.0,0.00012934,2]
[403604464,1769415032805,-500.0,0.00012934,2]
[403604465,1769415032815,-195.0,0.00012934,2]
[403604466,1769415032824,-1680.0,0.00012941,2]
[403604467,1769415032834,-998.35,0.00013142,2]
[403604468,1769415032843,-3414.13901374,0.00013151,2]
[403604469,1769415032855,-1020.54048194,0.00013151,2]
[403604470,1769415032866,-454.19104179,0.00013151,2]
[403604471,1769415032877,-387.88328806,0.00013151,2]
[403604473,1769415039934,-362.28957811,0.00013151,2]
[403604474,1769415039943,-727.76165449,0.00013416,2]
[403604475,1769415040041,-270.58834551,0.00013416,2]
[403604476,1769415040051,-998.42,0.0001369,2]
[403604477,1769415040063,-955.88,0.0001392,2]
[403604478,1769415040072,-2630.51,0.00013921,2]
[403604479,1769415040082,-433.0,0.00014008,2]
[403604480,1769415040093,-3240.0,0.00014059,2]
[403604481,1769415040102,-287.0,0.00014184,2]
[403604482,1769415040112,-2351.0,0.00014235,2]
[403604483,1769415040121,-8485.28,0.00014292,2]
[403604484,1769415040131,-151.0,0.00014547,2]
[403604485,1769415040141,-509.57470144,0.0001455,2]
[403604486,1769415040151,-151.0,0.00014558,2]
[403604487,1769415040160,-500.0,0.00014569,2]
[403604488,1769415040170,-502.44692622,0.00014569,2]
[403604489,1769415040179,-500.0,0.00014569,2]
[403604490,1769415040189,-502.18320891,0.00014569,2]
[403604491,1769415040199,-500.0,0.00014569,2]
[403604492,1769415040208,-500.0,0.00014569,2]
[403604493,1769415040218,-500.0,0.00014569,2]
[403604494,1769415040227,-500.0,0.00014569,2]
[403604495,1769415040236,-500.0,0.00014569,2]
[403604496,1769415040246,-500.0,0.00014569,2]
[403604497,1769415040256,-500.0,0.00014569,2]
[403604498,1769415040266,-500.0,0.00014569,2]
[403604499,1769415040275,-500.0,0.00014569,2]
[403604500,1769415040285,-500.0,0.00014569,2]
[403604501,1769415040294,-511.68014274,0.00014569,2]
[403604502,1769415040304,-500.0,0.00014569,2]
[403604503,1769415040314,-500.0,0.00014569,2]
[403604504,1769415040324,-500.0,0.00014569,2]
[403604505,1769415040334,-500.0,0.00014569,2]
[403604506,1769415040343,-500.0,0.00014569,2]
[403604507,1769415040354,-500.0,0.00014569,2]
[403604508,1769415040363,-500.0,0.00014569,2]
[403604509,1769415040373,-175.39278884,0.00014569,2]
[403604510,1769415040382,-500.0,0.00014569,2]
[403604511,1769415040394,-500.0,0.00014569,2]
[403604512,1769415040403,-500.0,0.00014569,2]
[403604513,1769415040413,-500.0,0.00014569,2]
[403604514,1769415040422,-151.0,0.00014575,2]
[403604515,1769415040432,-6493.59963014,0.00014847,2]
[403604516,1769415040441,-154.97163939,0.000149,2]
[403604517,1769415040450,-154.97163938,0.000149,2]
[403604518,1769415040460,-225.39,0.00015272,2]
[403604519,1769415040469,-736.0,0.00015291,2]
[403604520,1769415040478,-9999.99,0.0001531,2]
[403604521,1769415040488,-334.43732936,0.00015345,2]
[403604522,1769415040499,-560.38,0.00015438,2]
[403604523,1769415040509,-283.0,0.00015659,2]
[403604524,1769415040518,-390.67697076,0.00015662,2]
[403604525,1769415040528,-560.38,0.00015712,2]
[403604526,1769415040538,-152.0,0.00015752,3]
[403604527,1769415040548,-500.0,0.00015871,2]
[403604528,1769415040558,-507.58212227,0.00015871,2]
[403604529,1769415040568,-500.0,0.00015871,2]
[403604530,1769415040577,-500.0,0.00015871,2]
[403604531,1769415040587,-1000.0,0.00015918,2]
[403604532,1769415040597,-560.38,0.00015986,2]
[403604533,1769415040607,-484.73,0.00016082,2]
[403604534,1769415040617,-613.06,0.00016082,2]
[403604535,1769415040626,-484.73,0.00016082,2]
[403604536,1769415040636,-613.06,0.00016082,2]
[403604537,1769415040645,-484.73,0.00016082,2]
[403604538,1769415040654,-613.06,0.00016082,2]
[403604539,1769415040663,-484.73,0.00016082,2]
[403604540,1769415040672,-600.0,0.00016122,2]
[403604541,1769415040681,-235.14,0.00016128,2]
[403604542,1769415040691,-3147.3897,0.0001621,2]
[403604543,1769415040700,-6628.7407,0.0001621,2]
[403604544,1769415040710,-2500.0,0.00016238,2]
[403604545,1769415040719,-332.93475771,0.00016256,2]
[403604546,1769415040728,-560.38,0.0001626,2]
[403604547,1769415040738,-1667.68478706,0.00016263,2]
[403604548,1769415040747,-162.0,0.000163,2]
[403604549,1769415040757,-162.0,0.000163,2]
[403604550,1769415040766,-151.0,0.00016335,2]
[403604551,1769415040776,-632.75172605,0.00016337,2]
[403604552,1769415040785,-500.0,0.00016337,2]
[403604553,1769415040796,-505.8124625,0.00016337,2]
[403604554,1769415040805,-621.79073632,0.00016337,2]
[403604555,1769415040815,-500.0,0.00016337,2]
[403604556,1769415040824,-500.0,0.00016337,2]
[403604557,1769415040834,-293.07073164,0.00016337,2]
[403604558,1769415040844,-500.0,0.00016337,2]
[403604559,1769415040855,-500.0,0.00016337,2]
[403604560,1769415040864,-500.0,0.00016337,2]
[403604561,1769415040873,-500.0,0.00016337,2]
[403604562,1769415040883,-500.0,0.00016337,2]
[403604563,1769415040892,-500.0,0.00016337,2]
[403604564,1769415040903,-500.0,0.00016337,2]
[403604565,1769415040913,-500.0,0.00016337,2]
[403604566,1769415040925,-500.0,0.00016337,2]
[403604567,1769415040935,-500.0,0.00016337,2]
[403604568,1769415040944,-500.0,0.00016337,2]
[403604569,1769415040954,-500.0,0.00016337,2]
[403604570,1769415040964,-500.0,0.00016337,2]
[403604571,1769415040974,-500.0,0.00016337,2]
[403604572,1769415040984,-588.82402791,0.00016337,2]
[403604573,1769415040993,-534.26205379,0.00016337,2]
[403604574,1769415041003,-500.0,0.00016337,2]
[403604575,1769415041012,-500.0,0.00016337,2]
[403604576,1769415041024,-512.6177601,0.00016337,2]
[403604577,1769415041033,-500.0,0.00016337,2]
[403604578,1769415041043,-500.0,0.00016337,2]
[403604579,1769415041053,-360.36954837,0.00016337,2]
[403604580,1769415041063,-562.88447202,0.00016337,2]
[403604581,1769415041073,-500.0,0.00016337,2]
[403604582,1769415041083,-500.0,0.00016337,2]
[403604583,1769415041093,-500.0,0.00016337,2]
[403604584,1769415041103,-500.0,0.00016337,2]
[403604585,1769415041112,-500.0,0.00016337,2]
[403604586,1769415041122,-500.0,0.00016337,2]
[403604587,1769415041132,-500.0,0.00016337,2]
[403604588,1769415041142,-500.0,0.00016337,2]
[403604589,1769415041152,-500.0,0.00016337,2]
[403604590,1769415041161,-500.0,0.00016337,2]
[403604591,1769415041171,-500.0,0.00016337,2]
[403604592,1769415041181,-500.0,0.00016337,2]
[403604593,1769415041190,-500.0,0.00016337,2]
[403604594,1769415041200,-500.0,0.00016337,2]
[403604595,1769415041209,-500.0,0.00016337,2]
[403604596,1769415041219,-500.0,0.00016337,2]
[403604597,1769415041228,-500.0,0.00016337,2]
[403604598,1769415041237,-500.0,0.00016337,2]
[403604599,1769415041247,-500.0,0.00016337,2]
[403604600,1769415041257,-500.0,0.00016337,2]
[403604601,1769415041266,-500.0,0.00016337,2]
[403604602,1769415041275,-500.0,0.00016337,2]
[403604603,1769415041284,-500.0,0.00016337,2]
[403604604,1769415041293,-500.0,0.00016337,2]
[403604605,1769415041302,-150.0,0.00016337,2]
[403604606,1769415041311,-246.60609999,0.00016337,2]
[403604607,1769415041320,-314.48715393,0.00016337,2]
[403604608,1769415041330,-165.59145879,0.00016337,2]
[403604609,1769415041339,-226.98447199,0.00016337,2]
[403604610,1769415041349,-500.0,0.00016337,2]
[403604611,1769415041358,-407.83354669,0.00016337,2]
[403604612,1769415041367,-1000000.0,0.00016338,2]
[403604613,1769415041377,-150.0,0.00016356,2]
[403604614,1769415041387,-172.23,0.00016356,2]
[403604615,1769415041396,-175.76,0.00016356,2]
[403604616,1769415041405,-150.0,0.00016356,2]
[403604617,1769415041415,-172.23,0.00016356,2]
[403604618,1769415041424,-727.34,0.00016356,2]
[403604619,1769415041434,-150.0,0.00016356,2]
[403604620,1769415041443,-172.23,0.00016356,2]
[403604621,1769415041453,-779.03,0.00016363,2]
[403604622,1769415041462,-514.56190828,0.00016428,2]
[403604623,1769415041472,-305.29758295,0.00016435,2]
[403604624,1769415041482,-501.67465248,0.00016438,2]
[403604625,1769415041492,-1273.23,0.00016438,2]
[403604626,1769415041502,-1273.23,0.00016438,2]
[403604627,1769415041511,-1273.23,0.00016438,2]
[403604628,1769415041521,-1273.23,0.00016438,2]
[403604629,1769415041530,-1273.23,0.00016438,2]
[403604630,1769415041540,-227.03,0.00016438,2]
[403604631,1769415041550,-798.0,0.00016438,2]
[403604632,1769415041559,-1667.68478699,0.00016445,2]
[403604633,1769415041569,-1000.0,0.00016515,2]
[403604634,1769415041579,-332.93475768,0.0001653,2]
[403604635,1769415041588,-560.38,0.00016534,2]
[403604636,1769415041597,-500.0,0.00016548,2]
[403604637,1769415041608,-150.0,0.00016548,2]
[403604638,1769415041617,-500.0,0.00016548,2]
[403604639,1769415041627,-1000.0,0.00016558,2]
[403604640,1769415041638,-152.0,0.00016572,4]
[403604641,1769415041648,-500.0,0.00016603,2]
[403604642,1769415041658,-150.0,0.00016603,2]
[403604643,1769415041667,-500.0,0.00016603,2]
[403604644,1769415041677,-266.0,0.00016616,2]
[403604645,1769415041686,-150.0,0.00016616,2]
[403604646,1769415041695,-200.0,0.00016616,2]
[403604647,1769415041704,-150.139,0.00016616,2]
[403604648,1769415041714,-177.537,0.00016616,2]
[403604649,1769415041724,-167.825,0.00016616,2]
[403604650,1769415041733,-150.074,0.00016616,2]
[403604651,1769415041743,-199.072,0.00016616,2]
[403604652,1769415041754,-150.0,0.00016616,2]
[403604653,1769415041764,-151.0,0.00016616,2]
[403604654,1769415041773,-150.765,0.00016616,2]
[403604655,1769415041783,-1335.515,0.00016616,2]
[403604656,1769415041793,-1420.19,0.00016616,2]
[403604657,1769415041803,-621.408,0.00016616,2]
[403604658,1769415041813,-3477.0,0.00016616,2]
[403604659,1769415041823,-281.661,0.00016616,2]
[403604660,1769415041832,-1269.0,0.00016616,2]
[403604661,1769415041842,-1204.0,0.00016616,2]
[403604662,1769415041853,-916.0,0.00016616,2]
[403604663,1769415041863,-2442.0,0.00016616,2]
[403604664,1769415041872,-4831.0,0.00016616,2]
[403604665,1769415041881,-567.0,0.00016616,2]
[403604666,1769415041890,-1667.68478699,0.00016627,2]
[403604667,1769415041900,-500.0,0.00016658,2]
[403604668,1769415041910,-150.0,0.00016658,2]
[403604669,1769415041920,-500.0,0.00016658,2]
[403604670,1769415041931,-325.0,0.0001668,2]
[403604671,1769415041941,-349.9,0.00016702,2]
[403604672,1769415041951,-500.0,0.00016712,2]
[403604673,1769415041962,-150.0,0.00016712,2]
[403604674,1769415041972,-500.0,0.00016712,2]
[403604675,1769415041981,-322.6107,0.00016765,2]
[403604676,1769415041991,-174.61919141,0.00016765,2]
[403604677,1769415042000,-250.0,0.00016765,2]
[403604678,1769415042009,-250.0,0.00016765,2]
[403604679,1769415042023,-854.2589148,0.00016765,2]
[403604680,1769415042033,-250.0,0.00016765,2]
[403604681,1769415042043,-250.0,0.00016765,2]
[403604682,1769415042052,-250.0,0.00016765,2]
[403604683,1769415042062,-250.0,0.00016765,2]
[403604684,1769415042071,-250.0,0.00016765,2]
[403604685,1769415042080,-250.0,0.00016765,2]
[403604686,1769415042090,-250.0,0.00016765,2]
[403604687,1769415042099,-250.0,0.00016765,2]
[403604688,1769415042109,-250.0,0.00016765,2]
[403604689,1769415042118,-250.0,0.00016765,2]
[403604690,1769415042127,-250.0,0.00016765,2]
[403604691,1769415042137,-250.0,0.00016765,2]
[403604692,1769415042148,-250.0,0.00016765,2]
[403604693,1769415042158,-250.0,0.00016765,2]
[403604694,1769415042167,-250.0,0.00016765,2]
[403604695,1769415042176,-250.0,0.00016765,2]
[403604696,1769415042185,-250.0,0.00016765,2]
[403604697,1769415042459,-250.0,0.00016765,2]
[403604698,1769415042492,-250.0,0.00016765,2]
[403604699,1769415042502,-250.0,0.00016765,2]
[403604700,1769415042511,-721.12765535,0.00016765,2]
[403604701,1769415042520,-250.0,0.00016765,2]
[403604702,1769415042529,-500.0,0.00016765,2]
[403604703,1769415042539,-250.0,0.00016765,2]
[403604704,1769415042548,-500.0,0.00016765,2]
[403604705,1769415042558,-250.0,0.00016765,2]
[403604706,1769415042567,-500.0,0.00016765,2]
[403604707,1769415042576,-250.0,0.00016765,2]
[403604708,1769415042586,-500.0,0.00016765,2]
[403604710,1769415042595,-250.0,0.00016765,2]
[403604711,1769415042604,-500.0,0.00016765,2]
[403604713,1769415042614,-250.0,0.00016765,2]
[403604715,1769415042624,-500.0,0.00016765,2]
[403604717,1769415042634,-250.0,0.00016765,2]
[403604719,1769415042643,-500.0,0.00016765,2]
[403604721,1769415042652,-250.0,0.00016765,2]
[403604723,1769415042663,-500.0,0.00016765,2]
[403604725,1769415042672,-250.0,0.00016765,2]
[403604727,1769415042682,-500.0,0.00016765,2]
[403604729,1769415042692,-250.0,0.00016765,2]
[403604731,1769415042702,-250.0,0.00016765,2]
[403604732,1769415042712,-500.0,0.00016765,2]
[403604733,1769415042722,-250.0,0.00016765,2]
[403604734,1769415042731,-250.0,0.00016765,2]
[403604735,1769415042741,-500.0,0.00016765,2]
[403604736,1769415042750,-250.0,0.00016765,2]
[403604737,1769415042760,-250.0,0.00016765,2]
[403604738,1769415042770,-250.0,0.00016765,2]
[403604739,1769415042779,-250.0,0.00016765,2]
[403604740,1769415042788,-250.0,0.00016765,2]
[403604741,1769415042798,-151.0,0.00016765,2]
[403604743,1769415042807,-250.0,0.00016765,2]